[Event "Schack-SM 2022: Mastarklassen"]
[Site "Fyrishov, Idrottsgatan 2, Uppsala, Sweden"]
[Date "2022.07.04"]
[Round "3.3"]
[White "Hammarstrom, Ulf"]
[Black "Johnson, Daniel"]
[Result "1/2-1/2"]
[TimeControl "90 minutes for 40 moves + 30 minutes for the rest of the game + 30 seconds per move from move one."]
[WhiteFideId "1710214"]
[BlackFideId "1721283"]
[WhiteElo "2233"]
[BlackElo "2191"]

1. Nf3 {[%clk 01:30:55]} {[%emt 00:00:04]} d5 {[%clk 01:27:04]} {[%emt
00:03:56]} 2. e3 {[%clk 01:31:19]} {[%emt 00:00:06]} Nf6 {[%clk 01:26:18]}
{[%emt 00:01:16]} 3. c4 {[%clk 01:31:30]} {[%emt 00:00:19]} e6 {[%clk
01:25:26]} {[%emt 00:01:23]} 4. Nc3 {[%clk 01:31:35]} {[%emt 00:00:24]} Be7
{[%clk 01:23:45]} {[%emt 00:02:11]} 5. b3 {[%clk 01:31:19]} {[%emt 00:00:46]}
O-O {[%clk 01:21:36]} {[%emt 00:02:40]} 6. Bb2 {[%clk 01:31:23]} {[%emt
00:00:26]} b6 {[%clk 01:20:41]} {[%emt 00:01:25]} 7. cxd5 {[%clk 01:31:27]}
{[%emt 00:00:26]} Nxd5 {[%clk 01:19:00]} {[%emt 00:02:11]} 8. Nxd5 {[%clk
01:31:27]} {[%emt 00:00:30]} Qxd5 {[%clk 01:19:05]} {[%emt 00:00:24]} 9. Qc2
{[%clk 01:29:51]} {[%emt 00:02:07]} Ba6 {[%clk 01:03:43]} {[%emt 00:15:52]} 10.
Qxc7 {[%clk 01:25:09]} {[%emt 00:05:12]} Bxf1 {[%clk 00:52:09]} {[%emt
00:12:03]} 11. Qxe7 {[%clk 01:23:48]} {[%emt 00:01:49]} Nc6 {[%clk 00:31:41]}
{[%emt 00:21:01]} 12. Qg5 {[%clk 01:23:31]} {[%emt 00:00:45]} Qxg5 {[%clk
00:30:57]} {[%emt 00:01:14]} 13. Nxg5 {[%clk 01:23:56]} {[%emt 00:00:06]} Ba6
{[%clk 00:28:31]} {[%emt 00:02:57]} 14. Bc3 {[%clk 01:09:30]} {[%emt 00:14:56]}
h6 {[%clk 00:23:28]} {[%emt 00:05:33]} 15. Nf3 {[%clk 01:07:53]} {[%emt
00:02:07]} Rfc8 {[%clk 00:22:46]} {[%emt 00:01:11]} 16. Kd1 {[%clk 00:54:05]}
{[%emt 00:14:19]} Rc7 {[%clk 00:21:28]} {[%emt 00:01:48]} 17. Rc1 {[%clk
00:49:36]} {[%emt 00:04:58]} Rac8 {[%clk 00:16:28]} {[%emt 00:05:30]} 18. Be5
{[%clk 00:44:58]} {[%emt 00:05:07]} Nxe5 {[%clk 00:12:40]} {[%emt 00:04:20]} 19.
Rxc7 {[%clk 00:45:05]} {[%emt 00:00:24]} Rxc7 {[%clk 00:12:51]} {[%emt
00:00:19]} 20. Nxe5 {[%clk 00:45:27]} {[%emt 00:00:08]} f6 {[%clk 00:12:55]}
{[%emt 00:00:25]} 21. Nc4 {[%clk 00:33:54]} {[%emt 00:12:03]} Bxc4 {[%clk
00:12:46]} {[%emt 00:00:39]} 22. bxc4 {[%clk 00:34:20]} {[%emt 00:00:05]} Rxc4
{[%clk 00:13:00]} {[%emt 00:00:16]} 23. Ke2 {[%clk 00:34:14]} {[%emt 00:00:36]}
Kf7 {[%clk 00:12:09]} {[%emt 00:01:19]} 24. Kd3 {[%clk 00:30:59]} {[%emt
00:03:46]} b5 {[%clk 00:07:38]} {[%emt 00:05:01]} 25. Rb1 {[%clk 00:30:56]}
{[%emt 00:00:33]} a6 {[%clk 00:07:55]} {[%emt 00:00:13]} 26. Rb3 {[%clk
00:31:00]} {[%emt 00:00:27]} Ra4 {[%clk 00:06:42]} {[%emt 00:01:43]} 27. a3
{[%clk 00:30:54]} {[%emt 00:00:36]} Ke7 {[%clk 00:05:53]} {[%emt 00:01:18]} 28.
Kc2 {[%clk 00:29:34]} {[%emt 00:01:50]} Kd6 {[%clk 00:02:54]} {[%emt 00:03:30]}
29. Rd3+ {[%clk 00:28:49]} {[%emt 00:01:15]} Kc7 {[%clk 00:01:14]} {[%emt
00:02:09]} 30. Rc3+ {[%clk 00:26:48]} {[%emt 00:02:31]} Kd6 {[%clk 00:00:33]}
{[%emt 00:01:11]} 31. Rd3+ {[%clk 00:26:38]} {[%emt 00:00:41]} Kc7 {[%clk
00:00:49]} {[%emt 00:00:14]} 32. Rc3+ {[%clk 00:24:58]} {[%emt 00:02:10]} Kd6
{[%clk 00:00:58]} {[%emt 00:00:20]} 1/2-1/2

[Event "Schack-SM 2022: Mastarklassen"]
[Site "Fyrishov, Idrottsgatan 2, Uppsala, Sweden"]
[Date "2022.07.04"]
[Round "3.4"]
[White "Eriksson, Jorgen"]
[Black "Carlstrom, Niklas"]
[Result "1/2-1/2"]
[TimeControl "90 minutes for 40 moves + 30 minutes for the rest of the game + 30 seconds per move from move one."]
[WhiteFideId "1701967"]
[BlackFideId "1704648"]
[WhiteElo "2200"]
[BlackElo "2125"]

1. d4 {[%clk 01:30:53]} {[%emt 00:00:05]} d6 {[%clk 01:30:42]} {[%emt
00:00:19]} 2. Nf3 {[%clk 01:30:40]} {[%emt 00:00:43]} Nf6 {[%clk 01:30:57]}
{[%emt 00:00:14]} 3. g3 {[%clk 01:30:41]} {[%emt 00:00:30]} g6 {[%clk
01:31:13]} {[%emt 00:00:14]} 4. Bg2 {[%clk 01:31:02]} {[%emt 00:00:09]} Bg7
{[%clk 01:31:32]} {[%emt 00:00:11]} 5. O-O {[%clk 01:30:29]} {[%emt 00:01:04]}
O-O {[%clk 01:31:45]} {[%emt 00:00:17]} 6. b3 {[%clk 01:29:38]} {[%emt
00:01:21]} Nbd7 {[%clk 01:29:58]} {[%emt 00:02:16]} 7. Bb2 {[%clk 01:29:46]}
{[%emt 00:00:22]} e5 {[%clk 01:28:38]} {[%emt 00:01:51]} 8. e3 {[%clk
01:29:13]} {[%emt 00:01:04]} Re8 {[%clk 01:26:29]} {[%emt 00:02:39]} 9. c4
{[%clk 01:29:03]} {[%emt 00:00:40]} e4 {[%clk 01:25:04]} {[%emt 00:01:54]} 10.
Nfd2 {[%clk 01:29:17]} {[%emt 00:00:17]} c6 {[%clk 01:24:58]} {[%emt 00:00:36]}
11. Nc3 {[%clk 01:28:59]} {[%emt 00:00:48]} d5 {[%clk 01:24:43]} {[%emt
00:00:45]} 12. Rc1 {[%clk 01:19:00]} {[%emt 00:10:29]} Nb6 {[%clk 01:10:11]}
{[%emt 00:15:02]} 13. cxd5 {[%clk 01:06:37]} {[%emt 00:12:53]} Bg4 {[%clk
01:09:15]} {[%emt 00:01:25]} 14. Qe1 {[%clk 00:40:30]} {[%emt 00:26:38]} cxd5
{[%clk 01:09:18]} {[%emt 00:00:27]} 15. Nb5 {[%clk 00:39:20]} {[%emt 00:01:41]}
Rc8 {[%clk 01:03:16]} {[%emt 00:06:30]} 16. Rxc8 {[%clk 00:32:59]} {[%emt
00:06:52]} Nxc8 {[%clk 01:03:19]} {[%emt 00:00:26]} 17. h3 {[%clk 00:32:37]}
{[%emt 00:00:53]} Be6 {[%clk 00:47:43]} {[%emt 00:16:05]} 18. a4 {[%clk
00:28:50]} {[%emt 00:04:19]} Qd7 {[%clk 00:40:18]} {[%emt 00:07:54]} 19. Kh2
{[%clk 00:27:27]} {[%emt 00:01:53]} a6 {[%clk 00:39:46]} {[%emt 00:01:01]} 20.
Nc3 {[%clk 00:26:46]} {[%emt 00:01:11]} h5 {[%clk 00:39:53]} {[%emt 00:00:22]}
21. f4 {[%clk 00:20:11]} {[%emt 00:07:06]} exf3 {[%clk 00:28:03]} {[%emt
00:12:19]} 22. Nxf3 {[%clk 00:20:12]} {[%emt 00:00:29]} Nd6 {[%clk 00:27:42]}
{[%emt 00:00:52]} 23. Ne5 {[%clk 00:18:01]} {[%emt 00:02:41]} Qc7 {[%clk
00:27:31]} {[%emt 00:00:41]} 24. Qd2 {[%clk 00:09:25]} {[%emt 00:09:06]} h4
{[%clk 00:20:15]} {[%emt 00:07:45]} 25. g4 {[%clk 00:06:08]} {[%emt 00:03:48]}
Nde4 {[%clk 00:19:11]} {[%emt 00:01:34]} 26. Nxe4 {[%clk 00:06:02]} {[%emt
00:00:37]} dxe4 {[%clk 00:19:17]} {[%emt 00:00:24]} 27. Rc1 {[%clk 00:04:47]}
{[%emt 00:01:46]} Qb8 {[%clk 00:18:52]} {[%emt 00:00:54]} 28. Kg1 {[%clk
00:03:09]} {[%emt 00:02:08]} Nd7 {[%clk 00:13:45]} {[%emt 00:05:36]} 29. Nxd7
{[%clk 00:02:31]} {[%emt 00:01:09]} Bxd7 {[%clk 00:14:09]} {[%emt 00:00:06]} 30.
d5 {[%clk 00:02:04]} {[%emt 00:00:57]} Be5 {[%clk 00:12:49]} {[%emt 00:01:49]}
31. Bxe5 {[%clk 00:02:09]} {[%emt 00:00:25]} Qxe5 {[%clk 00:13:11]} {[%emt
00:00:08]} 32. Rd1 {[%clk 00:01:54]} {[%emt 00:00:46]} Rc8 {[%clk 00:03:32]}
{[%emt 00:10:07]} 33. Qf2 {[%clk 00:02:13]} {[%emt 00:00:12]} g5 {[%clk
00:02:20]} {[%emt 00:01:41]} 34. Rf1 {[%clk 00:01:45]} {[%emt 00:00:58]} Qxd5
{[%clk 00:01:53]} {[%emt 00:00:57]} 35. Bxe4 {[%clk 00:01:52]} {[%emt
00:00:24]} Qxe4 {[%clk 00:02:05]} {[%emt 00:00:18]} 36. Qxf7+ {[%clk 00:02:14]}
{[%emt 00:00:09]} Kh8 {[%clk 00:02:30]} {[%emt 00:00:04]} 37. Qf6+ {[%clk
00:01:56]} {[%emt 00:00:49]} Kh7 {[%clk 00:02:45]} {[%emt 00:00:15]} 38. Qf7+
{[%clk 00:01:03]} {[%emt 00:01:24]} Kh8 {[%clk 00:03:07]} {[%emt 00:00:08]} 39.
Qh5+ {[%clk 00:00:37]} {[%emt 00:00:56]} Kg8 {[%clk 00:02:58]} {[%emt
00:00:38]} 40. Qxg5+ {[%clk 00:00:54]} {[%emt 00:00:14]} Kh8 {[%clk 00:03:18]}
{[%emt 00:00:09]} 41. Qxh4+ {[%clk 00:27:23]} {[%emt 00:04:01]} Kg8 {[%clk
00:31:56]} {[%emt 00:01:51]} 42. Qg5+ {[%clk 00:27:26]} {[%emt 00:00:28]} Kh8
{[%clk 00:32:10]} {[%emt 00:00:16]} 43. Qf6+ {[%clk 00:12:31]} {[%emt
00:15:25]} 1/2-1/2

[Event "Schack-SM 2022: Mastarklassen"]
[Site "Fyrishov, Idrottsgatan 2, Uppsala, Sweden"]
[Date "2022.07.04"]
[Round "3.5"]
[White "Lundberg, David"]
[Black "Strom-Engdahl, Alexander"]
[Result "1-0"]
[TimeControl "90 minutes for 40 moves + 30 minutes for the rest of the game + 30 seconds per move from move one."]
[WhiteFideId "1707051"]
[BlackFideId "1741586"]
[WhiteElo "2219"]
[BlackElo "2077"]

1. d4 {[%clk 01:30:54]} {[%emt 00:00:06]} Nf6 {[%clk 01:30:36]} {[%emt
00:00:24]} 2. c4 {[%clk 01:30:53]} {[%emt 00:00:31]} e6 {[%clk 01:31:00]}
{[%emt 00:00:07]} 3. Nc3 {[%clk 01:31:17]} {[%emt 00:00:06]} Bb4 {[%clk
01:31:22]} {[%emt 00:00:08]} 4. e3 {[%clk 01:31:43]} {[%emt 00:00:04]} c5
{[%clk 01:30:19]} {[%emt 00:01:33]} 5. Nge2 {[%clk 01:28:54]} {[%emt 00:03:18]}
d6 {[%clk 01:24:04]} {[%emt 00:06:45]} 6. a3 {[%clk 01:26:13]} {[%emt
00:03:12]} Bxc3+ {[%clk 01:24:03]} {[%emt 00:00:30]} 7. Nxc3 {[%clk 01:26:34]}
{[%emt 00:00:09]} Nc6 {[%clk 01:23:22]} {[%emt 00:01:12]} 8. d5 {[%clk
01:19:01]} {[%emt 00:08:03]} Ne7 {[%clk 01:21:55]} {[%emt 00:01:56]} 9. g3
{[%clk 01:17:34]} {[%emt 00:01:57]} e5 {[%clk 01:20:09]} {[%emt 00:02:16]} 10.
Bg2 {[%clk 01:16:59]} {[%emt 00:01:06]} O-O {[%clk 01:20:17]} {[%emt 00:00:22]}
11. O-O {[%clk 01:16:26]} {[%emt 00:01:03]} Nd7 {[%clk 01:17:09]} {[%emt
00:03:38]} 12. Rb1 {[%clk 01:10:21]} {[%emt 00:06:35]} f5 {[%clk 01:15:12]}
{[%emt 00:02:27]} 13. f4 {[%clk 01:09:55]} {[%emt 00:00:56]} e4 {[%clk
01:12:52]} {[%emt 00:02:49]} 14. b4 {[%clk 01:08:52]} {[%emt 00:01:33]} b6
{[%clk 01:12:51]} {[%emt 00:00:32]} 15. Bb2 {[%clk 01:04:05]} {[%emt 00:05:16]}
Nf6 {[%clk 01:07:03]} {[%emt 00:06:18]} 16. h3 {[%clk 00:52:07]} {[%emt
00:12:28]} h5 {[%clk 00:54:20]} {[%emt 00:13:13]} 17. Rf2 {[%clk 00:46:09]}
{[%emt 00:06:28]} Bd7 {[%clk 00:48:06]} {[%emt 00:06:43]} 18. Bf1 {[%clk
00:43:16]} {[%emt 00:03:24]} a6 {[%clk 00:42:36]} {[%emt 00:06:00]} 19. Be2
{[%clk 00:42:16]} {[%emt 00:01:30]} Qe8 {[%clk 00:34:09]} {[%emt 00:08:57]} 20.
Ba1 {[%clk 00:40:42]} {[%emt 00:02:03]} Rb8 {[%clk 00:30:49]} {[%emt 00:03:50]}
21. Rg2 {[%clk 00:33:41]} {[%emt 00:07:32]} Qf7 {[%clk 00:29:59]} {[%emt
00:01:20]} 22. a4 {[%clk 00:30:21]} {[%emt 00:03:50]} Rfc8 {[%clk 00:23:46]}
{[%emt 00:06:43]} 23. bxc5 {[%clk 00:25:08]} {[%emt 00:05:42]} bxc5 {[%clk
00:22:35]} {[%emt 00:01:41]} 24. a5 {[%clk 00:24:39]} {[%emt 00:01:00]} Qe8
{[%clk 00:18:54]} {[%emt 00:04:10]} 25. Bf1 {[%clk 00:21:23]} {[%emt 00:03:46]}
Qd8 {[%clk 00:17:14]} {[%emt 00:02:11]} 26. Ra2 {[%clk 00:21:14]} {[%emt
00:00:38]} Kf7 {[%clk 00:14:29]} {[%emt 00:03:16]} 27. Be2 {[%clk 00:21:03]}
{[%emt 00:00:40]} g6 {[%clk 00:14:44]} {[%emt 00:00:16]} 28. Qc2 {[%clk
00:20:14]} {[%emt 00:01:18]} Qc7 {[%clk 00:14:32]} {[%emt 00:00:43]} 29. Rab2
{[%clk 00:14:28]} {[%emt 00:06:16]} Rxb2 {[%clk 00:14:27]} {[%emt 00:00:34]} 30.
Qxb2 {[%clk 00:14:47]} {[%emt 00:00:11]} Qxa5 {[%clk 00:13:00]} {[%emt
00:01:58]} 31. Nb5 {[%clk 00:12:47]} {[%emt 00:02:29]} Ne8 {[%clk 00:09:48]}
{[%emt 00:03:43]} 32. Nxd6+ {[%clk 00:12:56]} {[%emt 00:00:21]} Nxd6 {[%clk
00:10:13]} {[%emt 00:00:04]} 33. Qf6+ {[%clk 00:13:18]} {[%emt 00:00:07]} Ke8
{[%clk 00:10:41]} {[%emt 00:00:03]} 34. Qxd6 {[%clk 00:13:32]} {[%emt
00:00:17]} Qa2 {[%clk 00:09:46]} {[%emt 00:01:25]} 35. Re1 {[%clk 00:13:30]}
{[%emt 00:00:31]} Qd2 {[%clk 00:10:04]} {[%emt 00:00:12]} 36. Kf2 {[%clk
00:13:53]} {[%emt 00:00:07]} Rc6 {[%clk 00:10:28]} {[%emt 00:00:07]} 37. Qe5
{[%clk 00:13:29]} {[%emt 00:00:54]} Rb6 {[%clk 00:10:08]} {[%emt 00:00:51]} 38.
Rd1 {[%clk 00:12:44]} {[%emt 00:01:13]} Qc2 {[%clk 00:08:47]} {[%emt 00:01:52]}
39. d6 {[%clk 00:12:30]} {[%emt 00:00:44]} 1-0

[Event "Schack-SM 2022: Mastarklassen"]
[Site "Fyrishov, Idrottsgatan 2, Uppsala, Sweden"]
[Date "2022.07.04"]
[Round "3.6"]
[White "Bjorkman, Filip"]
[Black "Eriksson, Dan"]
[Result "0-1"]
[TimeControl "90 minutes for 40 moves + 30 minutes for the rest of the game + 30 seconds per move from move one."]
[WhiteFideId "1734970"]
[BlackFideId "1710095"]
[WhiteElo "2066"]
[BlackElo "2246"]

1. e4 {[%clk 01:30:57]} {[%emt 00:00:02]} e5 {[%clk 01:30:54]} {[%emt
00:00:06]} 2. Nf3 {[%clk 01:31:22]} {[%emt 00:00:05]} Nc6 {[%clk 01:31:19]}
{[%emt 00:00:05]} 3. Bc4 {[%clk 01:31:47]} {[%emt 00:00:05]} Bc5 {[%clk
01:31:43]} {[%emt 00:00:07]} 4. c3 {[%clk 01:32:11]} {[%emt 00:00:05]} Nf6
{[%clk 01:32:05]} {[%emt 00:00:08]} 5. d4 {[%clk 01:32:36]} {[%emt 00:00:05]}
exd4 {[%clk 01:32:30]} {[%emt 00:00:06]} 6. e5 {[%clk 01:33:02]} {[%emt
00:00:05]} d5 {[%clk 01:32:38]} {[%emt 00:00:22]} 7. Bb5 {[%clk 01:33:26]}
{[%emt 00:00:06]} Ne4 {[%clk 01:32:41]} {[%emt 00:00:26]} 8. cxd4 {[%clk
01:33:50]} {[%emt 00:00:07]} Bb6 {[%clk 01:33:02]} {[%emt 00:00:09]} 9. Nc3
{[%clk 01:34:13]} {[%emt 00:00:07]} O-O {[%clk 01:31:24]} {[%emt 00:02:08]} 10.
Be3 {[%clk 01:34:35]} {[%emt 00:00:09]} Bg4 {[%clk 01:30:25]} {[%emt 00:01:28]}
11. h3 {[%clk 01:34:58]} Bh5 {[%clk 01:30:32]} {[%emt 00:00:30]} 12. Qc2 {[%clk
01:35:13]} Bg6 {[%clk 01:28:09]} {[%emt 00:03:08]} 13. Qb3 {[%clk 01:35:36]}
Ba5 {[%clk 00:56:25]} {[%emt 00:32:23]} 14. O-O {[%clk 01:33:09]} Bxc3 {[%clk
00:53:55]} {[%emt 00:05:56]} 15. bxc3 {[%clk 01:31:31]} Na5 {[%clk 00:53:34]}
{[%emt 00:02:59]} 16. Qb4 {[%clk 01:25:04]} c6 {[%clk 00:52:17]} {[%emt
00:08:44]} 17. Be2 {[%clk 01:25:27]} b5 {[%clk 00:38:18]} {[%emt 00:14:36]} 18.
a4 {[%clk 01:24:11]} a6 {[%clk 00:38:43]} {[%emt 00:01:52]} 19. Ra2 {[%clk
01:22:40]} Nc4 {[%clk 00:37:03]} {[%emt 00:04:10]} 20. axb5 {[%clk 01:08:13]}
a5 {[%clk 00:36:14]} {[%emt 00:16:17]} 21. Qb3 {[%clk 01:08:13]} cxb5 {[%emt
00:01:19]} 22. Bxc4 {[%clk 00:36:55]} dxc4 {[%clk 00:28:44]} {[%emt 00:39:29]}
23. Qb2 {[%clk 00:36:02]} Rb8 {[%clk 00:19:28]} {[%emt 00:11:09]} 24. Rfa1
{[%clk 00:34:44]} b4 {[%clk 00:18:48]} {[%emt 00:02:57]} 25. Rxa5 {[%clk
00:35:04]} Nxc3 {[%clk 00:18:03]} {[%emt 00:01:26]} 26. Rc5 {[%clk 00:34:42]}
Bd3 {[%clk 00:16:27]} {[%emt 00:02:57]} 27. Ne1 {[%clk 00:32:04]} Ne2+ {[%clk
00:16:02]} {[%emt 00:04:04]} 28. Kh1 {[%clk 00:32:27]} c3 {[%clk 00:15:23]}
{[%emt 00:01:16]} 29. Qb3 {[%clk 00:32:20]} Be4 {[%clk 00:09:01]} {[%emt
00:07:28]} 30. d5 {[%clk 00:27:19]} Qh4 {[%clk 00:09:13]} {[%emt 00:05:50]} 31.
f3 {[%clk 00:25:29]} Ra8 {[%emt 00:05:53]} 32. Rd1 {[%clk 00:04:06]} {[%emt
00:01:44]} Bf5 {[%clk 00:07:34]} 33. Rc4 {[%clk 00:04:06]} Qg3 {[%clk
00:07:34]} {[%emt 00:20:15]} 34. Bg1 Bxh3 {[%clk 00:06:10]} 35. Qxb4 {[%clk
00:04:04]} Ra2 {[%clk 00:04:50]} {[%emt 00:02:37]} 36. Rh4 {[%clk 00:02:13]}
{[%emt 00:02:20]} Nxg1 {[%clk 00:04:39]} {[%emt 00:00:41]} 37. Qf4 {[%clk
00:01:54]} {[%emt 00:00:49]} Qg6 {[%clk 00:03:05]} {[%emt 00:02:04]} 38. g4
{[%clk 00:01:35]} {[%emt 00:00:49]} Ne2 {[%clk 00:02:52]} {[%emt 00:00:44]} 39.
Qe3 {[%clk 00:01:12]} {[%emt 00:00:54]} Ng3+ {[%clk 00:02:06]} {[%emt
00:01:16]} 40. Kg1 {[%clk 00:01:36]} {[%emt 00:00:06]} Nf5 {[%clk 00:01:39]}
{[%emt 00:00:57]} 0-1

[Event "Schack-SM 2022: Mastarklassen"]
[Site "Fyrishov, Idrottsgatan 2, Uppsala, Sweden"]
[Date "2022.07.04"]
[Round "3.7"]
[White "Tiger-Norqvist, Axel"]
[Black "Landgren, Andreas"]
[Result "1/2-1/2"]
[TimeControl "90 minutes for 40 moves + 30 minutes for the rest of the game + 30 seconds per move from move one."]
[BlackTitle "FM"]
[WhiteFideId "1716816"]
[BlackFideId "1704311"]
[WhiteElo "2239"]
[BlackElo "2224"]

1. e4 {[%clk 01:30:55]} {[%emt 00:00:05]} e5 {[%clk 01:31:22]} {[%emt
00:00:08]} 2. Nf3 {[%clk 01:31:10]} {[%emt 00:00:15]} Nc6 {[%clk 01:31:45]}
{[%emt 00:00:07]} 3. Bc4 {[%clk 01:31:04]} {[%emt 00:00:36]} Bc5 {[%clk
01:32:08]} {[%emt 00:00:07]} 4. c3 {[%clk 01:30:55]} {[%emt 00:00:38]} Nf6
{[%clk 01:32:30]} {[%emt 00:00:08]} 5. d4 {[%clk 01:31:16]} {[%emt 00:00:10]}
exd4 {[%clk 01:32:54]} {[%emt 00:00:06]} 6. e5 {[%clk 01:31:41]} {[%emt
00:00:05]} d5 {[%clk 01:33:18]} {[%emt 00:00:05]} 7. Bb5 {[%clk 01:32:01]}
{[%emt 00:00:10]} Ne4 {[%clk 01:33:41]} {[%emt 00:00:07]} 8. cxd4 {[%clk
01:32:19]} {[%emt 00:00:12]} Bb6 {[%clk 01:34:05]} {[%emt 00:00:07]} 9. Nc3
{[%clk 01:31:41]} {[%emt 00:01:08]} O-O {[%clk 01:34:26]} {[%emt 00:00:08]} 10.
Be3 {[%clk 01:28:07]} {[%emt 00:04:04]} Bg4 {[%clk 01:34:48]} {[%emt 00:00:09]}
11. h3 {[%clk 01:27:09]} {[%emt 00:01:28]} Bh5 {[%clk 01:35:10]} {[%emt
00:00:07]} 12. Rc1 {[%clk 01:26:01]} {[%emt 00:01:38]} f6 {[%clk 01:28:18]}
{[%emt 00:07:22]} 13. exf6 {[%clk 01:20:44]} {[%emt 00:05:47]} Nxc3 {[%clk
01:27:53]} {[%emt 00:00:55]} 14. bxc3 {[%clk 01:20:55]} {[%emt 00:00:19]} Qxf6
{[%clk 01:27:53]} {[%emt 00:00:30]} 15. Be2 {[%clk 01:20:45]} {[%emt 00:00:41]}
Bxf3 {[%clk 01:20:35]} {[%emt 00:07:47]} 16. Bxf3 {[%clk 01:20:41]} {[%emt
00:00:34]} Ne7 {[%clk 01:20:58]} {[%emt 00:00:07]} 17. O-O {[%clk 00:57:17]}
{[%emt 00:23:54]} c6 {[%clk 01:17:38]} {[%emt 00:03:51]} 18. Bg4 {[%clk
00:56:01]} {[%emt 00:01:46]} Bc7 {[%clk 01:05:53]} {[%emt 00:12:14]} 1/2-1/2